[Event "*** Titled Tuesday Blitz"]
[Site "Chess.com"]
[Date "2020.04.14"]
[Round "7"]
[White "TengisChess"]
[Black "wnstop"]
[Result "0-1"]
[WhiteElo "2397"]
[BlackElo "2573"]
[TimeControl "180+1"]
[EndTime "11:16:01 PDT"]
[Termination "wnstop won by checkmate"]

1. Nf3 {[%clk 0:03:00.9]} 1... Nf6 {[%clk 0:02:57.6]} 2. c4 {[%clk 0:03:00.8]}
2... g6 {[%clk 0:02:53.3]} 3. g3 {[%clk 0:03:00.6]} 3... Bg7 {[%clk 0:02:48.8]}
4. Bg2 {[%clk 0:03:01]} 4... O-O {[%clk 0:02:48.4]} 5. O-O {[%clk 0:03:01.5]}
5... d6 {[%clk 0:02:48]} 6. Nc3 {[%clk 0:03:01.5]} 6... Nc6 {[%clk 0:02:47.6]}
7. d4 {[%clk 0:02:59.7]} 7... Bf5 {[%clk 0:02:47.6]} 8. Bg5 {[%clk 0:02:57.9]}
8... Ne4 {[%clk 0:02:47.2]} 9. Nd5 {[%clk 0:02:42.3]} 9... Nxg5 {[%clk
0:02:38.6]} 10. Nxg5 {[%clk 0:02:39.2]} 10... e6 {[%clk 0:02:33.2]} 11. Nc3
{[%clk 0:02:35.8]} 11... Qxg5 {[%clk 0:02:27.6]} 12. f4 {[%clk 0:02:33.8]} 12...
Qh5 {[%clk 0:02:25]} 13. d5 {[%clk 0:02:15.3]} 13... Nd4 {[%clk 0:01:48.9]} 14.
e3 {[%clk 0:02:12.7]} 14... Nc2 {[%clk 0:01:23.6]} 15. e4 {[%clk 0:02:08.6]}
15... Qxd1 {[%clk 0:01:11.5]} 16. Raxd1 {[%clk 0:02:06.5]} 16... Bg4 {[%clk
0:01:10.8]} 17. Rd3 {[%clk 0:01:45.9]} 17... Nb4 {[%clk 0:01:07.4]} 18. Rd2
{[%clk 0:01:44.6]} 18... exd5 {[%clk 0:01:05]} 19. cxd5 {[%clk 0:01:44.2]} 19...
c5 {[%clk 0:01:02.1]} 20. dxc6 {[%clk 0:01:35.2]} 20... Nxc6 {[%clk 0:01:02.1]}
21. Rxd6 {[%clk 0:01:33]} 21... Rfd8 {[%clk 0:01:02.1]} 22. Rxd8+ {[%clk
0:01:29.9]} 22... Rxd8 {[%clk 0:01:03]} 23. e5 {[%clk 0:01:28.5]} 23... Rd2
{[%clk 0:01:01.6]} 24. h3 {[%clk 0:01:20.2]} 24... Be6 {[%clk 0:01:00.2]} 25.
Ne4 {[%clk 0:01:08.8]} 25... Rxb2 {[%clk 0:00:59.9]} 26. a4 {[%clk 0:01:03.8]}
26... Bf8 {[%clk 0:00:54.9]} 27. Rd1 {[%clk 0:01:03]} 27... Kg7 {[%clk 0:00:50]}
28. Nf6 {[%clk 0:01:02]} 28... g5 {[%clk 0:00:43.9]} 29. Be4 {[%clk 0:00:57.9]}
29... Bc5+ {[%clk 0:00:40.8]} 30. Kh1 {[%clk 0:00:56.3]} 30... gxf4 {[%clk
0:00:40]} 31. gxf4 {[%clk 0:00:50.2]} 31... Bxh3 {[%clk 0:00:30.3]} 32. Nxh7
{[%clk 0:00:42.1]} 32... Re2 {[%clk 0:00:20]} 33. Ng5 {[%clk 0:00:40.5]} 33...
Bg4 {[%clk 0:00:14.8]} 34. Rd5 {[%clk 0:00:17.7]} 34... Be3 {[%clk 0:00:10.9]}
35. Bd3 {[%clk 0:00:14.4]} 35... Rd2 {[%clk 0:00:08.5]} 36. e6 {[%clk
0:00:12.7]} 36... fxe6 {[%clk 0:00:06.8]} 37. Rd6 {[%clk 0:00:12]} 37... Rxd3
{[%clk 0:00:03.3]} 38. Rxd3 {[%clk 0:00:11.6]} 38... Bxf4 {[%clk 0:00:03.7]} 39.
Rd7+ {[%clk 0:00:11.3]} 39... Kf6 {[%clk 0:00:03.3]} 40. Ne4+ {[%clk 0:00:12.2]}
40... Ke5 {[%clk 0:00:03.3]} 41. Nc5 {[%clk 0:00:13.1]} 41... Bf3+ {[%clk
0:00:03.6]} 42. Kg1 {[%clk 0:00:13.4]} 42... Be3+ {[%clk 0:00:04.1]} 43. Kf1
{[%clk 0:00:13.8]} 43... Bxc5 {[%clk 0:00:05]} 44. Rxb7 {[%clk 0:00:14.2]} 44...
Nd4 {[%clk 0:00:05.3]} 45. Rc7 {[%clk 0:00:13.3]} 45... Kd6 {[%clk 0:00:05.7]}
46. Rc8 {[%clk 0:00:12.9]} 46... Be2+ {[%clk 0:00:06.2]} 47. Ke1 {[%clk
0:00:12.9]} 47... Ba6 {[%clk 0:00:07.1]} 48. Rd8+ {[%clk 0:00:12]} 48... Ke5
{[%clk 0:00:07.5]} 49. Rh8 {[%clk 0:00:12.2]} 49... Bc4 {[%clk 0:00:07.7]} 50.
Rh5+ {[%clk 0:00:11.5]} 50... Kd6 {[%clk 0:00:08.1]} 51. Rh7 {[%clk 0:00:12]}
51... Bb3 {[%clk 0:00:07.8]} 52. Kd2 {[%clk 0:00:12.3]} 52... Bxa4 {[%clk
0:00:08]} 53. Kc3 {[%clk 0:00:13.2]} 53... Nb5+ {[%clk 0:00:07.6]} 54. Kc4
{[%clk 0:00:13.2]} 54... Na3+ {[%clk 0:00:08.1]} 55. Kc3 {[%clk 0:00:13.3]}
55... Bc6 {[%clk 0:00:08.7]} 56. Rh8 {[%clk 0:00:12.6]} 56... Nb5+ {[%clk
0:00:09.6]} 57. Kb3 {[%clk 0:00:12.9]} 57... Nd4+ {[%clk 0:00:09.8]} 58. Ka2
{[%clk 0:00:12.3]} 58... Bd5+ {[%clk 0:00:10.3]} 59. Kb2 {[%clk 0:00:12.7]}
59... a5 {[%clk 0:00:11]} 60. Rd8+ {[%clk 0:00:13]} 60... Ke5 {[%clk 0:00:11.2]}
61. Rh8 {[%clk 0:00:13.7]} 61... Bb4 {[%clk 0:00:11.5]} 62. Rh5+ {[%clk
0:00:14.1]} 62... Nf5 {[%clk 0:00:11.9]} 63. Rh8 {[%clk 0:00:14.5]} 63... a4
{[%clk 0:00:12.1]} 64. Ka1 {[%clk 0:00:14.6]} 64... a3 {[%clk 0:00:13]} 65. Kb1
{[%clk 0:00:14.9]} 65... Bc3 {[%clk 0:00:13.2]} 66. Ra8 {[%clk 0:00:13.9]} 66...
Bxa8 {[%clk 0:00:12.7]} 67. Ka2 {[%clk 0:00:14.3]} 67... Bb4 {[%clk 0:00:12.9]}
68. Kb3 {[%clk 0:00:14.6]} 68... Be7 {[%clk 0:00:13.4]} 69. Kc2 {[%clk 0:00:15]}
69... a2 {[%clk 0:00:13.4]} 70. Kb2 {[%clk 0:00:15.3]} 70... Bd5 {[%clk
0:00:14]} 71. Kc3 {[%clk 0:00:15.3]} 71... a1=Q+ {[%clk 0:00:13.9]} 72. Kd3
{[%clk 0:00:15.4]} 72... Qa3+ {[%clk 0:00:14.1]} 73. Ke2 {[%clk 0:00:16.3]}
73... Bc4+ {[%clk 0:00:14.2]} 74. Kd1 {[%clk 0:00:17.2]} 74... Qd3+ {[%clk
0:00:14.1]} 75. Kc1 {[%clk 0:00:17.4]} 75... Ba3# {[%clk 0:00:14.4]} 0-1

[Event "*** Titled Tuesday Blitz"]
[Site "Chess.com"]
[Date "2020.04.14"]
[Round "7"]
[White "KarstenHansch"]
[Black "Toro1234"]
[Result "0-1"]
[WhiteElo "2449"]
[BlackElo "2633"]
[TimeControl "180+1"]
[EndTime "11:16:02 PDT"]
[Termination "Toro1234 won by resignation"]

1. e4 {[%clk 0:03:00.9]} 1... c5 {[%clk 0:02:55.2]} 2. Nf3 {[%clk 0:03:00.5]}
2... d6 {[%clk 0:02:55.3]} 3. Bb5+ {[%clk 0:02:59.8]} 3... Bd7 {[%clk 0:02:54]}
4. Bxd7+ {[%clk 0:02:59.2]} 4... Qxd7 {[%clk 0:02:54.9]} 5. c4 {[%clk
0:02:58.8]} 5... Nc6 {[%clk 0:02:53.6]} 6. Nc3 {[%clk 0:02:57.7]} 6... g6 {[%clk
0:02:53.8]} 7. d4 {[%clk 0:02:57.1]} 7... cxd4 {[%clk 0:02:53.2]} 8. Nxd4 {[%clk
0:02:58]} 8... Bg7 {[%clk 0:02:53.6]} 9. Be3 {[%clk 0:02:57.7]} 9... Nf6 {[%clk
0:02:53.8]} 10. f3 {[%clk 0:02:57.8]} 10... O-O {[%clk 0:02:53.6]} 11. O-O
{[%clk 0:02:55.8]} 11... a6 {[%clk 0:02:53.8]} 12. Qd3 {[%clk 0:02:54.2]} 12...
Rfc8 {[%clk 0:02:52.1]} 13. b3 {[%clk 0:02:53.7]} 13... b5 {[%clk 0:02:51.4]}
14. cxb5 {[%clk 0:02:51.4]} 14... Ne5 {[%clk 0:02:51.2]} 15. Qd2 {[%clk
0:02:49.9]} 15... d5 {[%clk 0:02:47.1]} 16. Nc6 {[%clk 0:02:40.7]} 16... Nxc6
{[%clk 0:02:34.2]} 17. bxc6 {[%clk 0:02:39.3]} 17... Rxc6 {[%clk 0:02:23.1]} 18.
Nxd5 {[%clk 0:02:36.4]} 18... Nxd5 {[%clk 0:02:20.9]} 19. exd5 {[%clk
0:02:36.4]} 19... Rd6 {[%clk 0:02:20]} 20. Rad1 {[%clk 0:02:28.6]} 20... Rd8
{[%clk 0:02:16.3]} 21. Qa5 {[%clk 0:02:26.7]} 21... Rxd5 {[%clk 0:02:09.4]} 22.
Rxd5 {[%clk 0:02:25.1]} 22... Qxd5 {[%clk 0:02:09.9]} 23. Qxa6 {[%clk
0:02:24.9]} 23... Ra8 {[%clk 0:02:10.4]} 24. Qe2 {[%clk 0:02:24.2]} 24... h5
{[%clk 0:02:03.2]} 25. Rd1 {[%clk 0:02:22.4]} 25... Qa5 {[%clk 0:02:01.4]} 26.
a4 {[%clk 0:02:20.7]} 26... Bf6 {[%clk 0:01:59.1]} 27. Qc4 {[%clk 0:02:17.3]}
27... h4 {[%clk 0:01:51.6]} 28. Qd5 {[%clk 0:02:04.2]} 28... Qa6 {[%clk
0:01:51.1]} 29. Bd4 {[%clk 0:02:00.4]} 29... h3 {[%clk 0:01:43.4]} 30. Bxf6
{[%clk 0:01:57]} 30... exf6 {[%clk 0:01:42.2]} 31. gxh3 {[%clk 0:01:55.7]} 31...
Re8 {[%clk 0:01:38.2]} 32. Qd3 {[%clk 0:01:37.5]} 32... Qb6+ {[%clk 0:01:36.2]}
33. Kg2 {[%clk 0:01:37]} 33... Kg7 {[%clk 0:01:33.5]} 34. h4 {[%clk 0:01:29.5]}
34... Re3 {[%clk 0:01:31.3]} 35. Qb5 {[%clk 0:01:21.7]} 35... Qe6 {[%clk
0:01:24.1]} 36. Rd2 {[%clk 0:01:19.3]} 36... Rxb3 {[%clk 0:01:22.8]} 37. Qd5
{[%clk 0:01:18.7]} 37... Qe3 {[%clk 0:01:19.2]} 38. a5 {[%clk 0:01:17.8]} 38...
Ra3 {[%clk 0:01:17.5]} 39. Ra2 {[%clk 0:01:12.8]} 39... Rd3 {[%clk 0:01:14.4]}
40. Qe4 {[%clk 0:01:12]} 40... Rd2+ {[%clk 0:01:11.5]} 41. Rxd2 {[%clk
0:01:10.6]} 41... Qxd2+ {[%clk 0:01:12.4]} 42. Kg3 {[%clk 0:01:10.4]} 42... Qxa5
{[%clk 0:01:12.6]} 43. Qd3 {[%clk 0:01:08.5]} 43... Qe5+ {[%clk 0:01:10.8]} 44.
f4 {[%clk 0:01:07.3]} 44... Qa1 {[%clk 0:01:07.3]} 45. Kg2 {[%clk 0:01:01.5]}
45... Qe1 {[%clk 0:00:54.8]} 46. Qg3 {[%clk 0:01:00.4]} 46... Qe2+ {[%clk
0:00:50.1]} 47. Qf2 {[%clk 0:01:00.3]} 47... Qe4+ {[%clk 0:00:50]} 48. Kg3
{[%clk 0:00:53.4]} 48... f5 {[%clk 0:00:47.2]} 49. Qb2+ {[%clk 0:00:50.9]} 49...
Kh7 {[%clk 0:00:46.8]} 50. Qf6 {[%clk 0:00:46.9]} 50... Qe3+ {[%clk 0:00:42.2]}
51. Kg2 {[%clk 0:00:45.6]} 51... Qe2+ {[%clk 0:00:41.4]} 52. Kg3 {[%clk
0:00:44.3]} 52... Qg4+ {[%clk 0:00:40.6]} 53. Kf2 {[%clk 0:00:42.4]} 53... Qxf4+
{[%clk 0:00:40.9]} 54. Kg2 {[%clk 0:00:37.6]} 54... Qe4+ {[%clk 0:00:39.9]} 55.
Kg3 {[%clk 0:00:35.5]} 55... Qe6 {[%clk 0:00:40.4]} 56. Qd8 {[%clk 0:00:35]}
56... Qe3+ {[%clk 0:00:37.5]} 57. Kg2 {[%clk 0:00:33.3]} 57... Qc3 {[%clk
0:00:36.3]} 58. h5 {[%clk 0:00:31.1]} 58... Qc6+ {[%clk 0:00:32.3]} 59. Kf2
{[%clk 0:00:26.2]} 59... gxh5 {[%clk 0:00:30]} 60. Qg5 {[%clk 0:00:24.4]} 60...
Qg6 {[%clk 0:00:29.9]} 61. Qe7 {[%clk 0:00:24.2]} 61... f4 {[%clk 0:00:28.4]}
62. Qe5 {[%clk 0:00:23.2]} 62... Qg4 {[%clk 0:00:17]} 63. Qf6 {[%clk 0:00:21.3]}
63... Kg8 {[%clk 0:00:14.4]} 64. Qd8+ {[%clk 0:00:17.9]} 64... Kg7 {[%clk
0:00:14.6]} 65. Qd4+ {[%clk 0:00:17.8]} 65... f6 {[%clk 0:00:14.8]} 66. Qa7+
{[%clk 0:00:16.4]} 66... Kg6 {[%clk 0:00:14.9]} 67. Qb8 {[%clk 0:00:13]} 67...
Qe6 {[%clk 0:00:14.2]} 68. Qf8 {[%clk 0:00:10.5]} 68... Qe3+ {[%clk 0:00:10.8]}
69. Kf1 {[%clk 0:00:10.1]} 69... f3 {[%clk 0:00:09.8]} 70. Qg8+ {[%clk
0:00:09.9]} 70... Kf5 {[%clk 0:00:10.3]} 71. Qd5+ {[%clk 0:00:09.8]} 71... Qe5
{[%clk 0:00:09.1]} 72. Qd3+ {[%clk 0:00:08.6]} 72... Kg5 {[%clk 0:00:07.1]} 73.
Qd2+ {[%clk 0:00:07.9]} 73... Kg4 {[%clk 0:00:06.6]} 74. Qb4+ {[%clk 0:00:07.4]}
74... Kh3 {[%clk 0:00:06.1]} 75. Kf2 {[%clk 0:00:07.1]} 75... Qe2+ {[%clk
0:00:06.1]} 0-1

[Event "*** Titled Tuesday Blitz"]
[Site "Chess.com"]
[Date "2020.04.14"]
[Round "7"]
[White "northridgehawk"]
[Black "Chigorinetz"]
[Result "1-0"]
[WhiteElo "2295"]
[BlackElo "2437"]
[TimeControl "180+1"]
[EndTime "11:16:03 PDT"]
[Termination "northridgehawk won by resignation"]

1. e4 {[%clk 0:02:54]} 1... c5 {[%clk 0:02:59.7]} 2. Nf3 {[%clk 0:02:54.1]} 2...
Nc6 {[%clk 0:02:59.7]} 3. d4 {[%clk 0:02:55]} 3... cxd4 {[%clk 0:02:59.5]} 4.
Nxd4 {[%clk 0:02:55.2]} 4... g6 {[%clk 0:02:59.9]} 5. c4 {[%clk 0:02:46.2]} 5...
Bg7 {[%clk 0:02:59.3]} 6. Be3 {[%clk 0:02:46.5]} 6... Nf6 {[%clk 0:02:59.3]} 7.
Nc3 {[%clk 0:02:46.5]} 7... Ng4 {[%clk 0:02:59.3]} 8. Qxg4 {[%clk 0:02:36.9]}
8... Nxd4 {[%clk 0:02:59]} 9. Qd1 {[%clk 0:02:37]} 9... Ne6 {[%clk 0:02:59]} 10.
Be2 {[%clk 0:02:37.3]} 10... Qa5 {[%clk 0:02:58.6]} 11. Qd2 {[%clk 0:02:35.7]}
11... Bxc3 {[%clk 0:02:56.7]} 12. bxc3 {[%clk 0:02:35]} 12... b6 {[%clk
0:02:56.6]} 13. O-O {[%clk 0:02:33.8]} 13... Bb7 {[%clk 0:02:56.6]} 14. f3
{[%clk 0:02:30.6]} 14... d6 {[%clk 0:02:56.5]} 15. Rab1 {[%clk 0:02:25.9]} 15...
Rc8 {[%clk 0:02:54.6]} 16. Rb5 {[%clk 0:02:24.6]} 16... Qa3 {[%clk 0:02:54.4]}
17. Rfb1 {[%clk 0:02:23.9]} 17... Bc6 {[%clk 0:02:46.4]} 18. R5b3 {[%clk
0:02:15.5]} 18... Qa5 {[%clk 0:02:46]} 19. Bd4 {[%clk 0:02:10.4]} 19... f6
{[%clk 0:02:44.6]} 20. Qb2 {[%clk 0:02:04.6]} 20... Qg5 {[%clk 0:02:40.3]} 21.
Kh1 {[%clk 0:01:57.3]} 21... Kf7 {[%clk 0:02:38.6]} 22. Rf1 {[%clk 0:01:53.3]}
22... h5 {[%clk 0:02:34.9]} 23. Bd1 {[%clk 0:01:48]} 23... h4 {[%clk 0:02:33.7]}
24. Qf2 {[%clk 0:01:45.3]} 24... Qf4 {[%clk 0:02:28.1]} 25. Ra3 {[%clk
0:01:41.1]} 25... Rc7 {[%clk 0:02:27]} 26. Be3 {[%clk 0:01:38.5]} 26... Qe5
{[%clk 0:02:24.9]} 27. Bc2 {[%clk 0:01:35.2]} 27... g5 {[%clk 0:02:24.1]} 28.
Rb3 {[%clk 0:01:25.7]} 28... Ba8 {[%clk 0:02:12.4]} 29. Rb5 {[%clk 0:01:20.1]}
29... Qxc3 {[%clk 0:02:06.9]} 30. Bb3 {[%clk 0:01:18.3]} 30... Rxc4 {[%clk
0:01:50.9]} 31. Rf5 {[%clk 0:00:54.7]} 31... Rhc8 {[%clk 0:01:39.7]} 32. h3
{[%clk 0:00:54.3]} 32... Qd3 {[%clk 0:01:32.4]} 33. Bxg5 {[%clk 0:00:49.1]}
33... Nxg5 {[%clk 0:01:29.4]} 34. Rd1 {[%clk 0:00:48.9]} 34... Qc3 {[%clk
0:01:22.8]} 35. Qxh4 {[%clk 0:00:45.9]} 35... Ke8 {[%clk 0:01:22.1]} 36. Qg4
{[%clk 0:00:36]} 36... Qe3 {[%clk 0:01:16.4]} 37. Bxc4 {[%clk 0:00:35.6]} 37...
Rxc4 {[%clk 0:01:15.2]} 38. h4 {[%clk 0:00:35.8]} 38... Nxe4 {[%clk 0:01:12.3]}
39. fxe4 {[%clk 0:00:31.6]} 39... Bxe4 {[%clk 0:01:08.8]} 40. Qg8+ {[%clk
0:00:21.1]} 40... Kd7 {[%clk 0:01:08.6]} 41. Rff1 {[%clk 0:00:21.7]} 41... Qe2
{[%clk 0:00:55.8]} 42. Rfe1 {[%clk 0:00:19.8]} 42... Bxg2+ {[%clk 0:00:22.4]}
43. Qxg2 {[%clk 0:00:17.6]} 43... Qxg2+ {[%clk 0:00:22.7]} 44. Kxg2 {[%clk
0:00:18]} 44... Rxh4 {[%clk 0:00:23.3]} 45. Re2 {[%clk 0:00:17]} 45... b5 {[%clk
0:00:21.8]} 46. Rde1 {[%clk 0:00:17]} 46... e5 {[%clk 0:00:21.5]} 47. Rd1 {[%clk
0:00:17.7]} 47... Rc4 {[%clk 0:00:19.2]} 48. Red2 {[%clk 0:00:18.3]} 48... Rc6
{[%clk 0:00:18.8]} 49. Kf3 {[%clk 0:00:19]} 49... Ke6 {[%clk 0:00:18.6]} 50. Ke4
{[%clk 0:00:19.1]} 50... f5+ {[%clk 0:00:16.2]} 51. Ke3 {[%clk 0:00:19.5]} 51...
b4 {[%clk 0:00:16]} 52. Rh1 {[%clk 0:00:19.8]} 52... Rc3+ {[%clk 0:00:15.6]} 53.
Ke2 {[%clk 0:00:20.1]} 53... e4 {[%clk 0:00:14.2]} 54. Rh6+ {[%clk 0:00:20.5]}
54... Ke5 {[%clk 0:00:15.1]} 55. Rhxd6 {[%clk 0:00:21.4]} 55... b3 {[%clk
0:00:14.8]} 56. axb3 {[%clk 0:00:21.4]} 56... Rxb3 {[%clk 0:00:14]} 57. R2d5+
{[%clk 0:00:22]} 57... Kf4 {[%clk 0:00:13.8]} 58. Ra5 {[%clk 0:00:22.5]} 58...
Rh3 {[%clk 0:00:12.3]} 59. Rxa7 {[%clk 0:00:22.4]} 59... Rh2+ {[%clk 0:00:12.1]}
60. Kd1 {[%clk 0:00:22.3]} 60... Kf3 {[%clk 0:00:12.4]} 61. Rf7 {[%clk
0:00:22.2]} 61... f4 {[%clk 0:00:11.8]} 62. Rdf6 {[%clk 0:00:21.9]} 62... Ke3
{[%clk 0:00:10.9]} 63. Rxf4 {[%clk 0:00:21.8]} 63... Ra2 {[%clk 0:00:10.4]} 64.
Rf1 {[%clk 0:00:20.7]} 64... Rb2 {[%clk 0:00:09.4]} 65. Re1+ {[%clk 0:00:20.3]}
65... Kd3 {[%clk 0:00:09.1]} 66. Rd7+ {[%clk 0:00:21.2]} 66... Kc3 {[%clk
0:00:09.2]} 67. Rxe4 {[%clk 0:00:21.7]} 67... Rb1+ {[%clk 0:00:09]} 68. Ke2
{[%clk 0:00:21.8]} 68... Rb5 {[%clk 0:00:09.9]} 69. Rd3+ {[%clk 0:00:21.8]}
69... Kc2 {[%clk 0:00:09.1]} 70. Rf3 {[%clk 0:00:21.9]} 70... Rc5 {[%clk
0:00:07.8]} 71. Kf2 {[%clk 0:00:22.6]} 71... Kd2 {[%clk 0:00:07]} 72. Re2+
{[%clk 0:00:23.5]} 72... Kd1 {[%clk 0:00:06.7]} 73. Re8 {[%clk 0:00:23.4]} 73...
Rc2+ {[%clk 0:00:05.9]} 74. Kg1 {[%clk 0:00:23.4]} 74... Rd2 {[%clk 0:00:05.5]}
75. Rf1+ {[%clk 0:00:22.9]} 75... Kc2 {[%clk 0:00:05.4]} 76. Rc8+ {[%clk
0:00:23]} 76... Kd3 {[%clk 0:00:04.8]} 77. Rd8+ {[%clk 0:00:23.1]} 77... Ke3
{[%clk 0:00:04.8]} 78. Rxd2 {[%clk 0:00:24]} 1-0

[Event "*** Titled Tuesday Blitz"]
[Site "Chess.com"]
[Date "2020.04.14"]
[Round "7"]
[White "Kobalia"]
[Black "BillieKimbah"]
[Result "1-0"]
[WhiteElo "2680"]
[BlackElo "2815"]
[TimeControl "180+1"]
[EndTime "11:16:04 PDT"]
[Termination "Kobalia won by checkmate"]

1. e4 {[%clk 0:03:00.9]} 1... d6 {[%clk 0:03:00.9]} 2. d4 {[%clk 0:02:59.5]}
2... g6 {[%clk 0:03:01.5]} 3. Nf3 {[%clk 0:02:58.9]} 3... Bg7 {[%clk 0:03:01.8]}
4. Bc4 {[%clk 0:02:58.8]} 4... c6 {[%clk 0:03:01.1]} 5. Bb3 {[%clk 0:02:58]}
5... Nf6 {[%clk 0:03:00.2]} 6. Qe2 {[%clk 0:02:57.7]} 6... O-O {[%clk
0:02:58.3]} 7. Nbd2 {[%clk 0:02:57.1]} 7... a5 {[%clk 0:02:52.7]} 8. a4 {[%clk
0:02:56.4]} 8... Qc7 {[%clk 0:02:52.5]} 9. O-O {[%clk 0:02:47.4]} 9... e5 {[%clk
0:02:52.2]} 10. dxe5 {[%clk 0:02:47.2]} 10... dxe5 {[%clk 0:02:51.9]} 11. Nc4
{[%clk 0:02:47]} 11... Nbd7 {[%clk 0:02:50.9]} 12. Rd1 {[%clk 0:02:43.6]} 12...
Nc5 {[%clk 0:02:48.5]} 13. Ncxe5 {[%clk 0:02:37.3]} 13... Nxb3 {[%clk 0:02:29]}
14. cxb3 {[%clk 0:02:35.3]} 14... Re8 {[%clk 0:02:29.4]} 15. h3 {[%clk
0:02:20.8]} 15... Be6 {[%clk 0:02:13.5]} 16. Bf4 {[%clk 0:02:09.1]} 16... Bxb3
{[%clk 0:02:04.6]} 17. Rd3 {[%clk 0:01:18.9]} 17... Bc4 {[%clk 0:02:03.3]} 18.
Nxc4 {[%clk 0:01:19]} 18... Qxf4 {[%clk 0:02:01.9]} 19. Nd6 {[%clk 0:01:19.1]}
19... Re6 {[%clk 0:01:57.7]} 20. e5 {[%clk 0:01:19.2]} 20... Nd7 {[%clk
0:01:54.1]} 21. Rd4 {[%clk 0:01:15.3]} 21... Bxe5 {[%clk 0:01:17.9]} 22. Rxf4
{[%clk 0:01:13.1]} 22... Bxf4 {[%clk 0:01:18]} 23. Ne4 {[%clk 0:01:07.8]} 23...
Nc5 {[%clk 0:01:17.6]} 24. g3 {[%clk 0:00:59.1]} 24... Rxe4 {[%clk 0:01:17.3]}
25. Qc2 {[%clk 0:00:52.9]} 25... Bd6 {[%clk 0:01:17.7]} 26. Rd1 {[%clk
0:00:51.7]} 26... Bf8 {[%clk 0:01:16.6]} 27. Ng5 {[%clk 0:00:50.6]} 27... Re5
{[%clk 0:01:14.7]} 28. f4 {[%clk 0:00:48.5]} 28... Ree8 {[%clk 0:01:12.9]} 29.
f5 {[%clk 0:00:42.9]} 29... Rad8 {[%clk 0:01:11.1]} 30. Rxd8 {[%clk 0:00:41.6]}
30... Rxd8 {[%clk 0:01:12]} 31. Qc4 {[%clk 0:00:38.7]} 31... Rd5 {[%clk
0:01:11]} 32. fxg6 {[%clk 0:00:34.8]} 32... hxg6 {[%clk 0:01:11.9]} 33. h4
{[%clk 0:00:32.9]} 33... Nd3 {[%clk 0:01:06.3]} 34. Qe4 {[%clk 0:00:30.2]} 34...
Ne5 {[%clk 0:01:01.3]} 35. Kg2 {[%clk 0:00:29.4]} 35... Rd2+ {[%clk 0:01:00.5]}
36. Kh3 {[%clk 0:00:28.6]} 36... Rd5 {[%clk 0:00:57.8]} 37. b3 {[%clk
0:00:25.8]} 37... Bg7 {[%clk 0:00:57.5]} 38. Qe1 {[%clk 0:00:23.1]} 38... Rd3
{[%clk 0:00:53.8]} 39. Qe4 {[%clk 0:00:15.4]} 39... Rxb3 {[%clk 0:00:50.8]} 40.
Qd4 {[%clk 0:00:15.6]} 40... Rd3 {[%clk 0:00:50.2]} 41. Qa7 {[%clk 0:00:15.4]}
41... Nf3 {[%clk 0:00:26.5]} 42. Qa8+ {[%clk 0:00:14.1]} 42... Bf8 {[%clk
0:00:26.8]} 43. Nh7 {[%clk 0:00:13]} 43... Kxh7 {[%clk 0:00:25.1]} 44. Qxf8
{[%clk 0:00:13.5]} 44... Ne5 {[%clk 0:00:25.7]} 45. Qe7 {[%clk 0:00:13.6]} 45...
Re3 {[%clk 0:00:25.1]} 46. Qxb7 {[%clk 0:00:13.4]} 46... Kg7 {[%clk 0:00:22.3]}
47. Qa7 {[%clk 0:00:13.5]} 47... Re4 {[%clk 0:00:20.4]} 48. Qxa5 {[%clk
0:00:13.1]} 48... Ng4 {[%clk 0:00:20.3]} 49. Qc3+ {[%clk 0:00:11.9]} 49... Kh7
{[%clk 0:00:18.8]} 50. Qxc6 {[%clk 0:00:11.8]} 50... f5 {[%clk 0:00:19]} 51.
Qb7+ {[%clk 0:00:10.6]} 51... Kh6 {[%clk 0:00:19]} 52. Qa8 {[%clk 0:00:10]}
52... Kh7 {[%clk 0:00:18.8]} 53. Qa7+ {[%clk 0:00:10]} 53... Kh6 {[%clk
0:00:19]} 54. Qa8 {[%clk 0:00:10]} 54... Kh7 {[%clk 0:00:18.5]} 55. Qa6 {[%clk
0:00:10]} 55... Re1 {[%clk 0:00:16.3]} 56. Qa7+ {[%clk 0:00:09]} 56... Kh6
{[%clk 0:00:15.9]} 57. Qa8 {[%clk 0:00:09.3]} 57... Kh7 {[%clk 0:00:14.7]} 58.
Qa6 {[%clk 0:00:09]} 58... Rd1 {[%clk 0:00:10.9]} 59. h5 {[%clk 0:00:08.6]}
59... Rh1+ {[%clk 0:00:07.6]} 60. Kg2 {[%clk 0:00:08.4]} 60... Rxh5 {[%clk
0:00:08.5]} 61. a5 {[%clk 0:00:07]} 61... Rh2+ {[%clk 0:00:08.3]} 62. Kg1 {[%clk
0:00:06.8]} 62... Rd2 {[%clk 0:00:07.4]} 63. Qb7+ {[%clk 0:00:06.2]} 63... Kh6
{[%clk 0:00:07.3]} 64. a6 {[%clk 0:00:06]} 64... Rd1+ {[%clk 0:00:05.6]} 65. Kg2
{[%clk 0:00:05.5]} 65... Rd2+ {[%clk 0:00:06.3]} 66. Kf1 {[%clk 0:00:05.8]}
66... Ne3+ {[%clk 0:00:06]} 67. Ke1 {[%clk 0:00:05.7]} 67... Ra2 {[%clk
0:00:05.8]} 68. a7 {[%clk 0:00:05.5]} 68... Rc2 {[%clk 0:00:05.7]} 69. Qb6
{[%clk 0:00:03.6]} 69... Nd5 {[%clk 0:00:03.8]} 70. Qd4 {[%clk 0:00:02.4]} 70...
Ra2 {[%clk 0:00:03.8]} 71. Qh8+ {[%clk 0:00:02]} 71... Kg5 {[%clk 0:00:02.8]}
72. Qh4# {[%clk 0:00:02.2]} 1-0